[Event "Titled Tuesday Blitz February 22 Early 2022"]
[White "Estrada Nieto, Julian"]
[Black "Zemerov, Vladimir"]
[WhiteFideId "5101018"]
[BlackFideId "4111583"]
[WhiteElo "2246"]
[BlackElo "2277"]
[Result "0-1"]
[Round "11"]
[TimeControl "180+1"]
[Date "2022.02.22"]
[WhiteClock "0:00:08"]
[BlackClock "0:00:38"]

1. e4 {[%clk 0:03:00]}  c5 {[%clk 0:02:39]} 2. Nf3 {[%clk 0:03:00]}  d6 {[%clk 0:02:39]} 3. d4 {[%clk 0:03:00]}  cxd4 {[%clk 0:02:40]} 4. Qxd4 {[%clk 0:03:01]}  Nf6 {[%clk 0:02:40]} 5. Nc3 {[%clk 0:03:00]}  Nc6 {[%clk 0:02:40]} 6. Bb5 {[%clk 0:02:59]}  Bd7 {[%clk 0:02:40]} 7. Bxc6 {[%clk 0:03:00]}  Bxc6 {[%clk 0:02:39]} 8. Bg5 {[%clk 0:03:00]}  e6 {[%clk 0:02:38]} 9. O-O-O {[%clk 0:02:59]}  Be7 {[%clk 0:02:36]} 10. Rhe1 {[%clk 0:03:00]}  O-O {[%clk 0:02:35]} 11. Kb1 {[%clk 0:03:00]}  a6 {[%clk 0:02:30]} 12. Qd2 {[%clk 0:02:58]}  Rc8 {[%clk 0:02:26]} 13. Nd4 {[%clk 0:02:55]}  Qa5 {[%clk 0:02:23]} 14. f3 {[%clk 0:02:39]}  Rfe8 {[%clk 0:01:53]} 15. Nd5 {[%clk 0:02:26]}  Qxd2 {[%clk 0:01:51]} 16. Nxe7+ {[%clk 0:02:26]}  Rxe7 {[%clk 0:01:51]} 17. Rxd2 {[%clk 0:02:23]}  Rd7 {[%clk 0:01:49]} 18. Red1 {[%clk 0:02:22]}  h6 {[%clk 0:01:47]} 19. Bh4 {[%clk 0:02:21]}  g5 {[%clk 0:01:45]} 20. Bg3 {[%clk 0:02:20]}  Ne8 {[%clk 0:01:44]} 21. c4 {[%clk 0:02:15]}  Kf8 {[%clk 0:01:40]} 22. b3 {[%clk 0:02:14]}  Ke7 {[%clk 0:01:40]} 23. e5 {[%clk 0:02:12]}  d5 {[%clk 0:01:35]} 24. Kb2 {[%clk 0:02:06]}  Rcd8 {[%clk 0:01:32]} 25. Nxc6+ {[%clk 0:01:55]}  bxc6 {[%clk 0:01:31]} 26. Bf2 {[%clk 0:01:56]}  f6 {[%clk 0:01:25]} 27. Bb6 {[%clk 0:01:50]}  Rb8 {[%clk 0:01:24]} 28. Bc5+ {[%clk 0:01:49]}  Kf7 {[%clk 0:01:23]} 29. Re1 {[%clk 0:01:45]}  f5 {[%clk 0:01:16]} 30. h4 {[%clk 0:01:40]}  Rdb7 {[%clk 0:01:15]} 31. Kc3 {[%clk 0:01:38]}  Ng7 {[%clk 0:01:14]} 32. hxg5 {[%clk 0:01:38]}  hxg5 {[%clk 0:01:13]} 33. Rh1 {[%clk 0:01:38]}  Kg6 {[%clk 0:01:11]} 34. g4 {[%clk 0:01:33]}  fxg4 {[%clk 0:01:09]} 35. fxg4 {[%clk 0:01:33]}  Rf7 {[%clk 0:01:09]} 36. Rdh2 {[%clk 0:01:31]}  Rf3+ {[%clk 0:01:08]} 37. Kc2 {[%clk 0:01:30]}  dxc4 {[%clk 0:01:07]} 38. bxc4 {[%clk 0:01:27]}  Rd8 {[%clk 0:01:04]} 39. Bd6 {[%clk 0:01:19]}  Rf4 {[%clk 0:01:01]} 40. Rh6+ {[%clk 0:01:15]}  Kf7 {[%clk 0:01:00]} 41. Kc3 {[%clk 0:01:09]}  Rg8 {[%clk 0:01:00]} 42. Rh7 {[%clk 0:00:59]}  Rxg4 {[%clk 0:00:59]} 43. Kb4 {[%clk 0:00:50]}  c5+ {[%clk 0:00:49]} 44. Bxc5 {[%clk 0:00:37]}  Rb8+ {[%clk 0:00:48]} 45. Kc3 {[%clk 0:00:37]}  Rc8 {[%clk 0:00:48]} 46. Bd4 {[%clk 0:00:31]}  Rg3+ {[%clk 0:00:43]} 47. Kd2 {[%clk 0:00:31]}  Rxc4 {[%clk 0:00:42]} 48. Be3 {[%clk 0:00:27]}  Ra4 {[%clk 0:00:39]} 49. Rf1+ {[%clk 0:00:12]}  Kg8 {[%clk 0:00:37]} 50. Rh6 {[%clk 0:00:05]}  Rxa2+ {[%clk 0:00:37]} 51. Kd1 {[%clk 0:00:03]}  Rxe3 {[%clk 0:00:36]} 52. Rhf6 {[%clk 0:00:02]}  Ra1+ {[%clk 0:00:35]} 53. Kd2 {[%clk 0:00:02]}  Rxf1 {[%clk 0:00:35]} 54. Rxf1 {[%clk 0:00:02]}  Rxe5 {[%clk 0:00:35]} 55. Rb1 {[%clk 0:00:01]}  Kf7 {[%clk 0:00:34]} 56. Rb8 {[%clk 0:00:02]}  Kf6 {[%clk 0:00:34]} 57. Rb7 {[%clk 0:00:03]}  Nf5 {[%clk 0:00:34]} 58. Ra7 {[%clk 0:00:04]}  g4 {[%clk 0:00:34]} 59. Kd3 {[%clk 0:00:04]}  g3 {[%clk 0:00:34]} 60. Rxa6 {[%clk 0:00:04]}  g2 {[%clk 0:00:33]} 61. Ra1 {[%clk 0:00:05]}  Re3+ {[%clk 0:00:33]} 62. Kd2 {[%clk 0:00:05]}  Rg3 {[%clk 0:00:33]} 63. Rg1 {[%clk 0:00:06]}  Nh4 {[%clk 0:00:33]} 64. Ke2 {[%clk 0:00:07]}  Rh3 {[%clk 0:00:33]} 65. Kf2 {[%clk 0:00:06]}  Rh1 {[%clk 0:00:33]} 66. Rxg2 {[%clk 0:00:06]}  Nxg2 {[%clk 0:00:33]} 67. Kxg2 {[%clk 0:00:07]}  Rh5 {[%clk 0:00:33]} 68. Kg3 {[%clk 0:00:07]}  Kf5 {[%clk 0:00:34]} 69. Kf3 {[%clk 0:00:07]}  Rg5 {[%clk 0:00:35]} 70. Kf2 {[%clk 0:00:07]}  e5 {[%clk 0:00:36]} 71. Kf3 {[%clk 0:00:07]}  e4+ {[%clk 0:00:36]} 72. Kf2 {[%clk 0:00:08]}  Kf4 {[%clk 0:00:37]} 73. Ke2 {[%clk 0:00:08]}  e3 {[%clk 0:00:37]} 74. Kf1 {[%clk 0:00:08]}  Kf3 {[%clk 0:00:38]} 0-1


[Site "https://www.chess.com"]

[Event "Titled Tuesday Blitz February 22 Early 2022"]
[White "Eynullayev, Atilla"]
[Black "Sadykov, Ramil"]
[WhiteFideId "13413570"]
[BlackFideId "24113590"]
[WhiteElo "1979"]
[BlackElo "2300"]
[Result "1/2-1/2"]
[Round "11"]
[TimeControl "180+1"]
[Date "2022.02.22"]
[WhiteClock "0:01:11"]
[BlackClock "0:00:29"]

1. e4 {[%clk 0:03:00]}  e5 {[%clk 0:02:59]} 2. Nf3 {[%clk 0:02:59]}  Nf6 {[%clk 0:02:59]} 3. Nxe5 {[%clk 0:02:58]}  Nxe4 {[%clk 0:02:59]} 4. Qe2 {[%clk 0:02:57]}  Qe7 {[%clk 0:02:59]} 5. Qxe4 {[%clk 0:02:57]}  d6 {[%clk 0:02:59]} 6. d4 {[%clk 0:02:58]}  dxe5 {[%clk 0:02:59]} 7. dxe5 {[%clk 0:02:59]}  Nc6 {[%clk 0:02:55]} 8. Nc3 {[%clk 0:02:59]}  Qxe5 {[%clk 0:02:52]} 9. Qxe5+ {[%clk 0:03:00]}  Nxe5 {[%clk 0:02:53]} 10. Bf4 {[%clk 0:03:00]}  Bd6 {[%clk 0:02:52]} 11. Nb5 {[%clk 0:02:39]}  Nd3+ {[%clk 0:02:29]} 12. Bxd3 {[%clk 0:02:38]}  Bxf4 {[%clk 0:02:29]} 13. g3 {[%clk 0:02:39]}  Bd6 {[%clk 0:02:27]} 14. Nxd6+ {[%clk 0:02:38]}  cxd6 {[%clk 0:02:24]} 15. O-O-O {[%clk 0:02:39]}  Be6 {[%clk 0:02:20]} 16. Be4 {[%clk 0:02:37]}  O-O-O {[%clk 0:02:19]} 17. b3 {[%clk 0:02:33]}  h6 {[%clk 0:02:15]} 18. Rd2 {[%clk 0:02:30]}  Rhe8 {[%clk 0:02:15]} 19. Bf3 {[%clk 0:02:28]}  Kc7 {[%clk 0:02:13]} 20. Rhd1 {[%clk 0:02:28]}  f6 {[%clk 0:01:58]} 21. Kb2 {[%clk 0:02:28]}  Re7 {[%clk 0:01:55]} 22. a4 {[%clk 0:02:28]}  b6 {[%clk 0:01:46]} 23. Rd4 {[%clk 0:02:26]}  a5 {[%clk 0:01:39]} 24. c3 {[%clk 0:02:27]}  g5 {[%clk 0:01:32]} 25. b4 {[%clk 0:02:25]}  Red7 {[%clk 0:01:27]} 26. b5 {[%clk 0:02:23]}  Re7 {[%clk 0:01:23]} 27. h4 {[%clk 0:02:22]}  Bf7 {[%clk 0:01:21]} 28. Ka3 {[%clk 0:01:53]}  Re5 {[%clk 0:01:09]} 29. hxg5 {[%clk 0:01:46]}  hxg5 {[%clk 0:01:10]} 30. Rh1 {[%clk 0:01:46]}  Rd7 {[%clk 0:01:02]} 31. Rh7 {[%clk 0:01:43]}  Be6 {[%clk 0:00:50]} 32. Rh8 {[%clk 0:01:38]}  Rf5 {[%clk 0:00:43]} 33. Bc6 {[%clk 0:01:32]}  Rxf2 {[%clk 0:00:37]} 34. c4 {[%clk 0:01:32]}  Re7 {[%clk 0:00:35]} 35. Ra8 {[%clk 0:01:33]}  Bxc4 {[%clk 0:00:30]} 36. Ra7+ {[%clk 0:01:33]}  Kb8 {[%clk 0:00:30]} 37. Ra8+ {[%clk 0:01:29]}  Kc7 {[%clk 0:00:29]} 38. Ra7+ {[%clk 0:01:14]}  Kb8 {[%clk 0:00:29]} 39. Ra8+ {[%clk 0:01:11]}  Kc7 {[%clk 0:00:29]} 1/2-1/2


[Site "https://www.chess.com"]

[Event "Titled Tuesday Blitz February 22 Early 2022"]
[White "Gaehwiler, Gabriel"]
[Black "Vlassov, Nikolai"]
[WhiteFideId "1314530"]
[BlackFideId "4103360"]
[WhiteElo "2383"]
[BlackElo "2407"]
[Result "0-1"]
[Round "11"]
[TimeControl "180+1"]
[Date "2022.02.22"]
[WhiteClock "0:00:07"]
[BlackClock "0:00:35"]

1. d4 {[%clk 0:03:00]}  Nf6 {[%clk 0:02:59]} 2. Nf3 {[%clk 0:03:01]}  e6 {[%clk 0:02:59]} 3. c4 {[%clk 0:03:00]}  Nc6 {[%clk 0:03:00]} 4. g3 {[%clk 0:03:00]}  Bb4+ {[%clk 0:03:00]} 5. Bd2 {[%clk 0:03:00]}  a5 {[%clk 0:03:00]} 6. Bg2 {[%clk 0:03:00]}  d6 {[%clk 0:03:00]} 7. O-O {[%clk 0:03:00]}  e5 {[%clk 0:03:01]} 8. d5 {[%clk 0:02:47]}  Nb8 {[%clk 0:03:00]} 9. Nc3 {[%clk 0:02:45]}  O-O {[%clk 0:02:59]} 10. Ne1 {[%clk 0:02:45]}  Bf5 {[%clk 0:02:51]} 11. f3 {[%clk 0:02:28]}  Na6 {[%clk 0:02:50]} 12. e4 {[%clk 0:02:27]}  Bd7 {[%clk 0:02:47]} 13. Nd3 {[%clk 0:02:27]}  c6 {[%clk 0:02:42]} 14. Kh1 {[%clk 0:02:23]}  cxd5 {[%clk 0:02:42]} 15. cxd5 {[%clk 0:02:17]}  Nc5 {[%clk 0:02:40]} 16. Nf2 {[%clk 0:02:11]}  b5 {[%clk 0:02:35]} 17. a3 {[%clk 0:02:00]}  Bxc3 {[%clk 0:02:35]} 18. Bxc3 {[%clk 0:02:01]}  Na4 {[%clk 0:02:26]} 19. Qd2 {[%clk 0:01:58]}  Qb6 {[%clk 0:02:22]} 20. Nd3 {[%clk 0:01:52]}  Rfc8 {[%clk 0:02:18]} 21. Rfc1 {[%clk 0:01:50]}  h6 {[%clk 0:02:10]} 22. Qe1 {[%clk 0:01:42]}  Nxc3 {[%clk 0:02:09]} 23. bxc3 {[%clk 0:01:40]}  Rc7 {[%clk 0:02:05]} 24. Rab1 {[%clk 0:01:36]}  Rac8 {[%clk 0:02:02]} 25. Bf1 {[%clk 0:01:35]}  Qa7 {[%clk 0:01:56]} 26. Rc2 {[%clk 0:01:18]}  Nh7 {[%clk 0:01:53]} 27. h4 {[%clk 0:01:12]}  f5 {[%clk 0:01:53]} 28. Nf2 {[%clk 0:01:05]}  Nf6 {[%clk 0:01:52]} 29. Bxb5 {[%clk 0:01:00]}  Bxb5 {[%clk 0:01:45]} 30. Rxb5 {[%clk 0:01:01]}  fxe4 {[%clk 0:01:41]} 31. Nxe4 {[%clk 0:00:59]}  Nxe4 {[%clk 0:01:40]} 32. fxe4 {[%clk 0:00:52]}  Rf7 {[%clk 0:01:26]} 33. Kg2 {[%clk 0:00:51]}  Rcf8 {[%clk 0:01:26]} 34. Rbb2 {[%clk 0:00:49]}  Qc5 {[%clk 0:01:20]} 35. Ra2 {[%clk 0:00:40]}  Qc4 {[%clk 0:01:18]} 36. Qe2 {[%clk 0:00:38]}  Rf2+ {[%clk 0:01:15]} 37. Qxf2 {[%clk 0:00:38]}  Qxe4+ {[%clk 0:01:14]} 38. Kh2 {[%clk 0:00:38]}  Rxf2+ {[%clk 0:01:13]} 39. Rxf2 {[%clk 0:00:39]}  Qxd5 {[%clk 0:01:13]} 40. Rad2 {[%clk 0:00:39]}  Qc5 {[%clk 0:01:13]} 41. a4 {[%clk 0:00:34]}  e4 {[%clk 0:01:01]} 42. Rf4 {[%clk 0:00:26]}  d5 {[%clk 0:00:59]} 43. Rf5 {[%clk 0:00:24]}  e3 {[%clk 0:00:48]} 44. Rdxd5 {[%clk 0:00:22]}  Qxc3 {[%clk 0:00:48]} 45. Rc5 {[%clk 0:00:17]}  Qd2+ {[%clk 0:00:45]} 46. Kh3 {[%clk 0:00:17]}  e2 {[%clk 0:00:45]} 47. Rc8+ {[%clk 0:00:13]}  Kh7 {[%clk 0:00:45]} 48. Rff8 {[%clk 0:00:08]}  Qd7+ {[%clk 0:00:39]} 49. Kg2 {[%clk 0:00:07]}  e1=Q {[%clk 0:00:35]} 0-1


[Site "https://www.chess.com"]

[Event "Titled Tuesday Blitz February 22 Early 2022"]
[White "Garv Gaur"]
[Black "Brunner, Nicolas"]
[WhiteFideId "45030839"]
[BlackFideId "620246"]
[WhiteElo "1950"]
[BlackElo "2372"]
[Result "0-1"]
[Round "11"]
[TimeControl "180+1"]
[Date "2022.02.22"]
[WhiteClock "0:00:12"]
[BlackClock "0:00:10"]

1. d4 {[%clk 0:03:00]}  d5 {[%clk 0:02:58]} 2. Nf3 {[%clk 0:03:00]}  Nf6 {[%clk 0:02:58]} 3. c4 {[%clk 0:03:01]}  e6 {[%clk 0:02:56]} 4. g3 {[%clk 0:03:01]}  dxc4 {[%clk 0:02:55]} 5. Bg2 {[%clk 0:03:01]}  c5 {[%clk 0:02:54]} 6. O-O {[%clk 0:02:58]}  Nc6 {[%clk 0:02:53]} 7. Qa4 {[%clk 0:02:56]}  Bd7 {[%clk 0:02:47]} 8. Qxc4 {[%clk 0:02:48]}  b5 {[%clk 0:02:45]} 9. Qc3 {[%clk 0:02:46]}  Rc8 {[%clk 0:02:39]} 10. dxc5 {[%clk 0:02:44]}  Nd5 {[%clk 0:02:30]} 11. Qb3 {[%clk 0:02:40]}  Bxc5 {[%clk 0:02:23]} 12. Nc3 {[%clk 0:02:34]}  Nxc3 {[%clk 0:02:21]} 13. bxc3 {[%clk 0:02:35]}  a6 {[%clk 0:02:10]} 14. Bg5 {[%clk 0:02:28]}  Qb6 {[%clk 0:02:08]} 15. Rad1 {[%clk 0:02:23]}  Na5 {[%clk 0:02:05]} 16. Qc2 {[%clk 0:02:19]}  Bc6 {[%clk 0:02:05]} 17. Ne5 {[%clk 0:02:16]}  Bxg2 {[%clk 0:02:04]} 18. Kxg2 {[%clk 0:02:16]}  O-O {[%clk 0:02:00]} 19. Qe4 {[%clk 0:02:11]}  Rfe8 {[%clk 0:01:30]} 20. Nd7 {[%clk 0:02:05]}  Qc6 {[%clk 0:01:28]} 21. Qxc6 {[%clk 0:02:02]}  Rxc6 {[%clk 0:01:28]} 22. Ne5 {[%clk 0:01:56]}  Rcc8 {[%clk 0:01:20]} 23. Bc1 {[%clk 0:01:47]}  f6 {[%clk 0:01:18]} 24. Nd3 {[%clk 0:01:45]}  Bf8 {[%clk 0:01:14]} 25. Nb4 {[%clk 0:01:25]}  Rxc3 {[%clk 0:01:07]} 26. Nxa6 {[%clk 0:01:24]}  Rc2 {[%clk 0:01:07]} 27. Bd2 {[%clk 0:01:20]}  Nc4 {[%clk 0:01:05]} 28. Bb4 {[%clk 0:01:20]}  Rxe2 {[%clk 0:01:02]} 29. Bxf8 {[%clk 0:01:18]}  Kxf8 {[%clk 0:00:57]} 30. Kf3 {[%clk 0:00:57]}  Rxa2 {[%clk 0:00:55]} 31. Nb4 {[%clk 0:00:54]}  Rb2 {[%clk 0:00:44]} 32. Nd3 {[%clk 0:00:52]}  Rc2 {[%clk 0:00:39]} 33. Rfe1 {[%clk 0:00:48]}  e5 {[%clk 0:00:38]} 34. Nb4 {[%clk 0:00:48]}  Rc3+ {[%clk 0:00:37]} 35. Kg2 {[%clk 0:00:48]}  Rb3 {[%clk 0:00:36]} 36. Nd5 {[%clk 0:00:48]}  Rd8 {[%clk 0:00:34]} 37. h4 {[%clk 0:00:33]}  h5 {[%clk 0:00:34]} 38. Nc7 {[%clk 0:00:27]}  Rxd1 {[%clk 0:00:29]} 39. Rxd1 {[%clk 0:00:28]}  Ke7 {[%clk 0:00:24]} 40. Nd5+ {[%clk 0:00:28]}  Kf7 {[%clk 0:00:21]} 41. Ra1 {[%clk 0:00:24]}  Rd3 {[%clk 0:00:12]} 42. Ra7+ {[%clk 0:00:20]}  Kf8 {[%clk 0:00:11]} 43. Nc7 {[%clk 0:00:19]}  Rd7 {[%clk 0:00:09]} 44. Ra8+ {[%clk 0:00:12]}  Kf7 {[%clk 0:00:09]} 45. Nxb5 {[%clk 0:00:10]}  Rb7 {[%clk 0:00:09]} 46. Nc3 {[%clk 0:00:09]}  Rb2 {[%clk 0:00:09]} 47. Ne4 {[%clk 0:00:09]}  Ne3+ {[%clk 0:00:07]} 48. Kf3 {[%clk 0:00:09]}  Nf5 {[%clk 0:00:08]} 49. Ra7+ {[%clk 0:00:09]}  Kg6 {[%clk 0:00:08]} 50. Kg2 {[%clk 0:00:09]}  Rb4 {[%clk 0:00:07]} 51. Nc5 {[%clk 0:00:09]}  Rc4 {[%clk 0:00:06]} 52. Ne6 {[%clk 0:00:09]}  Rc6 {[%clk 0:00:06]} 53. Nd8 {[%clk 0:00:09]}  Rd6 {[%clk 0:00:05]} 54. Nb7 {[%clk 0:00:08]}  Rd7 {[%clk 0:00:06]} 55. Kf3 {[%clk 0:00:06]}  Nd6 {[%clk 0:00:06]} 56. Nxd6 {[%clk 0:00:05]}  Rxa7 {[%clk 0:00:06]} 57. Ne4 {[%clk 0:00:05]}  Ra3+ {[%clk 0:00:06]} 58. Kg2 {[%clk 0:00:05]}  Kf5 {[%clk 0:00:06]} 59. Nd6+ {[%clk 0:00:06]}  Ke6 {[%clk 0:00:06]} 60. Ne8 {[%clk 0:00:05]}  Kf7 {[%clk 0:00:06]} 61. Nd6+ {[%clk 0:00:05]}  Kg6 {[%clk 0:00:06]} 62. Nc4 {[%clk 0:00:05]}  Rc3 {[%clk 0:00:06]} 63. Nd6 {[%clk 0:00:05]}  Rd3 {[%clk 0:00:06]} 64. Ne4 {[%clk 0:00:04]}  Rd4 {[%clk 0:00:06]} 65. Nc5 {[%clk 0:00:05]}  e4 {[%clk 0:00:06]} 66. Ne6 {[%clk 0:00:04]}  Rd2 {[%clk 0:00:06]} 67. Nf4+ {[%clk 0:00:05]}  Kh6 {[%clk 0:00:06]} 68. Ne6 {[%clk 0:00:05]}  e3 {[%clk 0:00:06]} 69. Nf4 {[%clk 0:00:04]}  e2 {[%clk 0:00:06]} 70. Nxe2 {[%clk 0:00:03]}  Rxe2 {[%clk 0:00:07]} 71. Kf3 {[%clk 0:00:04]}  Rb2 {[%clk 0:00:07]} 72. g4 {[%clk 0:00:04]}  hxg4+ {[%clk 0:00:07]} 73. Kxg4 {[%clk 0:00:05]}  Rxf2 {[%clk 0:00:07]} 74. h5 {[%clk 0:00:06]}  Rb2 {[%clk 0:00:07]} 75. Kg3 {[%clk 0:00:07]}  Rb5 {[%clk 0:00:07]} 76. Kf4 {[%clk 0:00:08]}  Rxh5 {[%clk 0:00:07]} 77. Ke4 {[%clk 0:00:09]}  Kg6 {[%clk 0:00:08]} 78. Kf3 {[%clk 0:00:10]}  Kg5 {[%clk 0:00:08]} 79. Kg3 {[%clk 0:00:10]}  f5 {[%clk 0:00:08]} 80. Kf3 {[%clk 0:00:11]}  f4 {[%clk 0:00:09]} 81. Kg2 {[%clk 0:00:12]}  Kg4 {[%clk 0:00:09]} 82. Kf2 {[%clk 0:00:11]}  f3 {[%clk 0:00:10]} 83. Kg1 {[%clk 0:00:12]}  Kg3 {[%clk 0:00:10]} 84. Kf1 {[%clk 0:00:11]}  Re5 {[%clk 0:00:10]} 85. Kg1 {[%clk 0:00:12]}  Re1# {[%clk 0:00:10]} 0-1


[Site "https://www.chess.com"]

[Event "Titled Tuesday Blitz February 22 Early 2022"]
[White "Gatterer, Florian"]
[Black "Berdychevskaya, Natasha"]
[WhiteFideId "811688"]
[BlackFideId "4159322"]
[WhiteElo "2218"]
[BlackElo "1780"]
[Result "0-1"]
[Round "11"]
[TimeControl "180+1"]
[Date "2022.02.22"]
[WhiteClock "0:00:11"]
[BlackClock "0:00:33"]

1. e4 {[%clk 0:03:00]}  e5 {[%clk 0:02:54]} 2. Nf3 {[%clk 0:03:00]}  Nf6 {[%clk 0:02:48]} 3. Nxe5 {[%clk 0:02:59]}  Nxe4 {[%clk 0:02:47]} 4. Qe2 {[%clk 0:02:56]}  Qe7 {[%clk 0:02:48]} 5. Qxe4 {[%clk 0:02:55]}  d6 {[%clk 0:02:48]} 6. d4 {[%clk 0:02:55]}  dxe5 {[%clk 0:02:47]} 7. Qxe5 {[%clk 0:02:54]}  Qxe5+ {[%clk 0:02:47]} 8. dxe5 {[%clk 0:02:54]}  Bf5 {[%clk 0:02:48]} 9. Bd3 {[%clk 0:02:52]}  Bxd3 {[%clk 0:02:47]} 10. cxd3 {[%clk 0:02:53]}  Nc6 {[%clk 0:02:47]} 11. e6 {[%clk 0:02:21]}  fxe6 {[%clk 0:02:35]} 12. O-O {[%clk 0:02:12]}  O-O-O {[%clk 0:02:31]} 13. Nc3 {[%clk 0:02:03]}  Rxd3 {[%clk 0:02:27]} 14. Re1 {[%clk 0:02:04]}  Bb4 {[%clk 0:02:22]} 15. Bf4 {[%clk 0:02:01]}  Bxc3 {[%clk 0:02:18]} 16. bxc3 {[%clk 0:02:02]}  Rxc3 {[%clk 0:02:18]} 17. Rxe6 {[%clk 0:02:00]}  Rd8 {[%clk 0:02:03]} 18. h3 {[%clk 0:01:58]}  b5 {[%clk 0:01:52]} 19. Rb1 {[%clk 0:01:47]}  b4 {[%clk 0:01:48]} 20. Re4 {[%clk 0:01:16]}  a5 {[%clk 0:01:43]} 21. Be5 {[%clk 0:01:04]}  Nxe5 {[%clk 0:01:33]} 22. Rxe5 {[%clk 0:01:05]}  c5 {[%clk 0:01:27]} 23. Re6 {[%clk 0:00:48]}  Kc7 {[%clk 0:01:18]} 24. Ra6 {[%clk 0:00:42]}  Rd2 {[%clk 0:01:07]} 25. Rxa5 {[%clk 0:00:22]}  Rcc2 {[%clk 0:00:58]} 26. Rf1 {[%clk 0:00:19]}  Kb6 {[%clk 0:00:54]} 27. Ra8 {[%clk 0:00:15]}  Rxa2 {[%clk 0:00:52]} 28. Rb8+ {[%clk 0:00:14]}  Kc6 {[%clk 0:00:51]} 29. g4 {[%clk 0:00:13]}  Kd5 {[%clk 0:00:44]} 30. Kg2 {[%clk 0:00:13]}  Kc4 {[%clk 0:00:43]} 31. Kg3 {[%clk 0:00:12]}  b3 {[%clk 0:00:43]} 32. Rc1+ {[%clk 0:00:12]}  Rdc2 {[%clk 0:00:42]} 33. Rb1 {[%clk 0:00:12]}  b2 {[%clk 0:00:37]} 34. f4 {[%clk 0:00:12]}  Ra3+ {[%clk 0:00:36]} 35. Kh4 {[%clk 0:00:12]}  Rb3 {[%clk 0:00:36]} 36. Rxb3 {[%clk 0:00:08]}  Kxb3 {[%clk 0:00:36]} 37. f5 {[%clk 0:00:09]}  Rc1 {[%clk 0:00:36]} 38. Rxb2+ {[%clk 0:00:09]}  Kxb2 {[%clk 0:00:36]} 39. g5 {[%clk 0:00:10]}  c4 {[%clk 0:00:34]} 40. f6 {[%clk 0:00:10]}  gxf6 {[%clk 0:00:35]} 41. gxf6 {[%clk 0:00:11]}  c3 {[%clk 0:00:35]} 42. Kg5 {[%clk 0:00:11]}  Rf1 {[%clk 0:00:36]} 43. h4 {[%clk 0:00:10]}  c2 {[%clk 0:00:35]} 44. Kh6 {[%clk 0:00:10]}  c1=Q+ {[%clk 0:00:34]} 45. Kxh7 {[%clk 0:00:11]}  Rxf6 {[%clk 0:00:33]} 0-1


[Site "https://www.chess.com"]

[Event "Titled Tuesday Blitz February 22 Early 2022"]
[White "Goldin, Roman"]
[Black "Fiorito, Fabian"]
[WhiteFideId "2803860"]
[BlackFideId "100200"]
[WhiteElo "2312"]
[BlackElo "2395"]
[Result "1-0"]
[Round "11"]
[TimeControl "180+1"]
[Date "2022.02.22"]
[WhiteClock "0:00:17"]
[BlackClock "0:01:03"]

1. e4 {[%clk 0:02:59]}  c6 {[%clk 0:02:59]} 2. d4 {[%clk 0:02:55]}  d5 {[%clk 0:02:59]} 3. f3 {[%clk 0:02:56]}  e6 {[%clk 0:02:55]} 4. Nc3 {[%clk 0:02:55]}  Nf6 {[%clk 0:02:56]} 5. e5 {[%clk 0:02:52]}  Nfd7 {[%clk 0:02:56]} 6. f4 {[%clk 0:02:53]}  c5 {[%clk 0:02:57]} 7. Nf3 {[%clk 0:02:51]}  Nc6 {[%clk 0:02:57]} 8. Bd3 {[%clk 0:02:40]}  cxd4 {[%clk 0:02:48]} 9. Nb5 {[%clk 0:02:25]}  Qb6 {[%clk 0:02:48]} 10. O-O {[%clk 0:02:00]}  a6 {[%clk 0:02:47]} 11. Nd6+ {[%clk 0:02:00]}  Bxd6 {[%clk 0:02:45]} 12. exd6 {[%clk 0:02:00]}  Nc5 {[%clk 0:02:39]} 13. Ne5 {[%clk 0:01:46]}  Nxd3 {[%clk 0:02:18]} 14. cxd3 {[%clk 0:01:32]}  Bd7 {[%clk 0:02:05]} 15. Qh5 {[%clk 0:01:04]}  Nd8 {[%clk 0:02:05]} 16. f5 {[%clk 0:01:01]}  Qxd6 {[%clk 0:02:02]} 17. Bf4 {[%clk 0:00:46]}  Qb6 {[%clk 0:02:01]} 18. Rae1 {[%clk 0:00:45]}  Rc8 {[%clk 0:01:49]} 19. Bg5 {[%clk 0:00:40]}  Rf8 {[%clk 0:01:07]} 20. Bxd8 {[%clk 0:00:20]}  Rc6 {[%clk 0:01:03]} 21. Bxb6 {[%clk 0:00:18]}  Rxb6 {[%clk 0:01:03]} 22. Nxd7 {[%clk 0:00:17]} 1-0


[Site "https://www.chess.com"]

[Event "Titled Tuesday Blitz February 22 Early 2022"]
[White "Heinemann, Josefine"]
[Black "Sahil, Tickoo"]
[WhiteFideId "12900460"]
[BlackFideId "5019710"]
[WhiteElo "2300"]
[BlackElo "2099"]
[Result "0-1"]
[Round "11"]
[TimeControl "180+1"]
[Date "2022.02.22"]
[WhiteClock "0:00:15"]
[BlackClock "0:00:07"]

1. Nf3 {[%clk 0:03:00]}  d5 {[%clk 0:02:59]} 2. d4 {[%clk 0:02:59]}  Nf6 {[%clk 0:02:59]} 3. Bf4 {[%clk 0:02:58]}  e6 {[%clk 0:02:50]} 4. e3 {[%clk 0:02:57]}  Bd6 {[%clk 0:02:49]} 5. Bxd6 {[%clk 0:02:53]}  Qxd6 {[%clk 0:02:49]} 6. c4 {[%clk 0:02:54]}  dxc4 {[%clk 0:02:46]} 7. Bxc4 {[%clk 0:02:53]}  Qb4+ {[%clk 0:02:41]} 8. Nbd2 {[%clk 0:02:52]}  Qxb2 {[%clk 0:02:40]} 9. O-O {[%clk 0:02:52]}  O-O {[%clk 0:02:39]} 10. Bb3 {[%clk 0:02:41]}  Qa3 {[%clk 0:02:35]} 11. Rc1 {[%clk 0:02:40]}  Qe7 {[%clk 0:02:33]} 12. Qc2 {[%clk 0:02:36]}  c6 {[%clk 0:02:31]} 13. Nc4 {[%clk 0:02:22]}  Nbd7 {[%clk 0:02:24]} 14. Na5 {[%clk 0:02:22]}  Nb6 {[%clk 0:02:20]} 15. Ne5 {[%clk 0:02:18]}  Rb8 {[%clk 0:02:01]} 16. Nexc6 {[%clk 0:02:06]}  bxc6 {[%clk 0:01:58]} 17. Nxc6 {[%clk 0:02:07]}  Qb7 {[%clk 0:01:55]} 18. Nxb8 {[%clk 0:02:07]}  Qxb8 {[%clk 0:01:54]} 19. e4 {[%clk 0:02:07]}  Ba6 {[%clk 0:01:49]} 20. Rfe1 {[%clk 0:02:03]}  Rc8 {[%clk 0:01:48]} 21. Qb1 {[%clk 0:02:01]}  Rxc1 {[%clk 0:01:40]} 22. Rxc1 {[%clk 0:02:02]}  h6 {[%clk 0:01:30]} 23. Qc2 {[%clk 0:01:50]}  Qf4 {[%clk 0:01:19]} 24. Re1 {[%clk 0:01:34]}  Ng4 {[%clk 0:01:10]} 25. g3 {[%clk 0:01:33]}  Qg5 {[%clk 0:01:00]} 26. h4 {[%clk 0:01:20]}  Qa5 {[%clk 0:00:52]} 27. Rc1 {[%clk 0:01:13]}  Qb4 {[%clk 0:00:45]} 28. Qc3 {[%clk 0:01:09]}  Qa3 {[%clk 0:00:32]} 29. Re1 {[%clk 0:01:05]}  Nf6 {[%clk 0:00:29]} 30. Qc7 {[%clk 0:01:04]}  Bd3 {[%clk 0:00:24]} 31. d5 {[%clk 0:00:52]}  Bxe4 {[%clk 0:00:16]} 32. dxe6 {[%clk 0:00:51]}  fxe6 {[%clk 0:00:15]} 33. Bxe6+ {[%clk 0:00:50]}  Kh7 {[%clk 0:00:12]} 34. Qf4 {[%clk 0:00:47]}  Qd3 {[%clk 0:00:10]} 35. Kh2 {[%clk 0:00:33]}  Nbd5 {[%clk 0:00:10]} 36. Bxd5 {[%clk 0:00:32]}  Qxd5 {[%clk 0:00:10]} 37. a3 {[%clk 0:00:27]}  Bf5 {[%clk 0:00:07]} 38. Re5 {[%clk 0:00:25]}  Ng4+ {[%clk 0:00:06]} 39. Qxg4 {[%clk 0:00:24]}  Qxe5 {[%clk 0:00:04]} 40. Qf3 {[%clk 0:00:24]}  Qe6 {[%clk 0:00:04]} 41. Qf4 {[%clk 0:00:23]}  Be4 {[%clk 0:00:04]} 42. Qe3 {[%clk 0:00:22]}  Qf5 {[%clk 0:00:03]} 43. f4 {[%clk 0:00:17]}  Bc6 {[%clk 0:00:03]} 44. Qe2 {[%clk 0:00:13]}  Qe4 {[%clk 0:00:03]} 45. Qxe4+ {[%clk 0:00:12]}  Bxe4 {[%clk 0:00:04]} 46. Kg1 {[%clk 0:00:13]}  h5 {[%clk 0:00:04]} 47. Kf2 {[%clk 0:00:14]}  Kg6 {[%clk 0:00:05]} 48. Ke3 {[%clk 0:00:15]}  Kf5 {[%clk 0:00:06]} 49. Kd4 {[%clk 0:00:15]}  a6 {[%clk 0:00:07]} 50. Ke3 {[%clk 0:00:15]}  Bb7 {[%clk 0:00:07]} 0-1


[Site "https://www.chess.com"]